bitfinex-derivatives/quotes_BTCF0:USTF0_20250528
["timestamp","ask_amount","ask_price","bid_price","bid_amount"]
[1748460721034,1.21359423,107560.0,107550.0,0.1358739]
[1748460721443,1.21359423,107560.0,107550.0,0.1359939]
[1748460721745,1.21359423,107560.0,107550.0,0.13459926]
[1748460721949,1.21559423,107560.0,107550.0,0.13737926]
[1748460722535,1.21859423,107560.0,107550.0,0.13737926]
[1748460722737,0.1859458,107530.0,107520.0,0.28032921]
[1748460723037,0.1859458,107530.0,107520.0,0.59172921]
[1748460723038,0.9473458,107530.0,107520.0,0.59172921]
[1748460723248,1.0459458,107530.0,107520.0,0.59172921]
[1748460723549,1.0459458,107530.0,107520.0,0.46735791]
[1748460724042,1.0459458,107530.0,107520.0,0.46747791]
[1748460724249,1.0459458,107530.0,107520.0,0.66027834]
[1748460724452,1.0459458,107530.0,107520.0,0.69155834]
[1748460724646,1.0459458,107530.0,107520.0,0.69267834]
[1748460724848,1.0459458,107530.0,107520.0,0.69819389]
[1748460725550,1.0459458,107530.0,107520.0,0.69719389]
[1748460725852,1.0469458,107530.0,107520.0,0.69267834]
[1748460726346,1.0609377,107530.0,107520.0,0.69267834]
[1748460726539,1.0609377,107530.0,107520.0,0.72487834]
[1748460726743,1.0609377,107530.0,107520.0,0.72839389]
[1748460726941,1.0619377,107530.0,107520.0,0.72839389]
[1748460727251,1.0619377,107530.0,107520.0,0.53559346]
[1748460727455,1.0619377,107530.0,107520.0,0.72839389]
[1748460727770,1.0619377,107530.0,107520.0,0.72387834]
[1748460730749,1.0619377,107530.0,107520.0,1.08467834]
[1748460731750,1.0619377,107530.0,107520.0,1.12584833]
[1748460732449,1.0619777,107530.0,107520.0,1.12584833]
[1748460734157,1.0619777,107530.0,107520.0,1.12586218]
[1748460734357,1.0619777,107530.0,107520.0,0.90086175]
[1748460734557,1.0619777,107530.0,107520.0,0.50866175]
[1748460734754,1.4227777,107530.0,107520.0,0.48170851]
[1748460735264,1.4227777,107530.0,107520.0,0.67450894]
[1748460735452,1.4227777,107530.0,107520.0,0.70518894]
[1748460735453,0.9913377,107530.0,107520.0,0.70518894]
[1748460735654,1.0619777,107530.0,107520.0,0.70530894]
[1748460735851,1.0619777,107530.0,107520.0,1.0984077]
[1748460736254,1.0619777,107530.0,107520.0,0.73760755]
[1748460736757,1.0619777,107530.0,107520.0,1.09840769]
[1748460737065,1.0619777,107530.0,107520.0,1.10292324]
[1748460737761,0.6305377,107530.0,107520.0,1.10292261]
[1748460737954,1.1639377,107530.0,107520.0,1.10292261]
[1748460738153,1.1639377,107530.0,107520.0,1.08869399]
[1748460738361,1.1639377,107530.0,107520.0,1.10292257]
[1748460739463,1.1639377,107530.0,107520.0,0.74212257]
[1748460739762,1.1639377,107530.0,107520.0,0.72789399]
[1748460739964,1.1639377,107530.0,107520.0,0.74212449]
[1748460740354,1.1639377,107530.0,107520.0,0.74212451]
[1748460740554,1.1639377,107530.0,107520.0,1.10292451]
[1748460740755,1.1639377,107530.0,107520.0,0.74212451]
[1748460741457,1.1639377,107530.0,107520.0,0.74212638]
[1748460741657,1.1639377,107530.0,107520.0,0.51702595]
[1748460741860,1.1639377,107530.0,107520.0,0.70982638]
[1748460742159,1.1639377,107530.0,107520.0,0.70531331]
[1748460742363,1.5247377,107530.0,107520.0,0.70531331]
[1748460742660,1.5247377,107530.0,107520.0,0.70531371]
[1748460742852,1.5247377,107530.0,107520.0,0.48171328]
[1748460743053,1.5247377,107530.0,107520.0,0.46747801]
[1748460743357,1.5247377,107530.0,107520.0,0.5147159]
[1748460743656,1.5247377,107530.0,107520.0,0.55592668]
[1748460744050,1.5247377,107530.0,107520.0,0.54168879]
[1748460744454,1.5247377,107530.0,107520.0,0.51471947]
[1748460744657,1.5247377,107530.0,107520.0,0.555941]
[1748460744957,1.5247377,107530.0,107520.0,0.55594151]
[1748460745660,1.5247377,107530.0,107520.0,0.54169955]
[1748460745861,1.5247377,107530.0,107520.0,0.55594613]
[1748460746255,1.5247376,107530.0,107520.0,0.74874656]
[1748460746458,1.5247376,107530.0,107520.0,0.74874658]
[1748460746861,1.5247376,107530.0,107520.0,0.74875239]
[1748460747160,1.5247376,107530.0,107520.0,0.74888628]
[1748460747462,1.5247376,107530.0,107520.0,0.74889358]
[1748460748262,1.5247376,107530.0,107520.0,0.74889398]
[1748460748463,1.5247376,107530.0,107520.0,0.55609355]
[1748460748865,1.5247376,107530.0,107520.0,0.55609836]
[1748460749764,1.5247376,107530.0,107520.0,0.54172909]
[1748460749965,1.5247376,107530.0,107520.0,0.55610369]
[1748460750969,1.5247376,107530.0,107520.0,0.54172909]
[1748460751170,1.5247376,107530.0,107520.0,0.55611036]
[1748460751365,1.5247376,107530.0,107520.0,0.50047801]
[1748460751572,1.5247376,107530.0,107520.0,0.55618799]
[1748460752370,1.5247376,107530.0,107520.0,0.59974813]
[1748460752566,1.5247376,107530.0,107520.0,0.59975899]
[1748460752967,1.5247376,107530.0,107520.0,0.59975903]
[1748460753673,1.71753803,107530.0,107520.0,0.52319889]
[1748460754170,1.76753803,107530.0,107520.0,0.52319889]
[1748460754359,1.76753803,107530.0,107520.0,0.50880672]
[1748460754555,1.76753803,107530.0,107520.0,0.52319904]
[1748460755168,1.76753803,107530.0,107520.0,0.52319816]
[1748460755368,1.76753803,107530.0,107520.0,0.52320103]
[1748460755673,1.76753803,107530.0,107520.0,0.52321523]
[1748460755970,1.33609803,107530.0,107520.0,0.50882092]
[1748460756174,1.5747376,107530.0,107520.0,0.52321516]
[1748460756762,1.5747376,107530.0,107520.0,0.50882092]
[1748460757466,1.5747376,107530.0,107520.0,0.52331946]
[1748460757666,1.5747376,107530.0,107520.0,0.55641946]
[1748460758769,1.5747376,107530.0,107520.0,0.54192092]
[1748460759074,1.5747376,107530.0,107520.0,0.55641922]
[1748460759965,1.2139376,107530.0,107520.0,0.55641931]
[1748460760173,1.2139376,107530.0,107520.0,0.55641908]
[1748460760877,1.2139376,107530.0,107520.0,0.30331909]
[1748460760878,1.40673803,107530.0,107520.0,0.30331909]
[1748460761272,1.40673803,107530.0,107520.0,0.28882092]
[1748460761473,1.40673803,107530.0,107520.0,0.30331915]
[1748460761772,1.40673803,107530.0,107520.0,0.33491915]
[1748460761973,1.40673803,107530.0,107520.0,0.33491867]
[1748460762577,0.7824976,107530.0,107520.0,0.52491867]
[1748460762764,0.2165519,107530.0,107520.0,1.21112572]
[1748460762970,0.1609519,107530.0,107520.0,1.24412572]
[1748460763279,0.5923919,107530.0,107520.0,1.22962813]
[1748460763868,0.5923919,107530.0,107520.0,1.2441253]
[1748460764268,0.5923919,107530.0,107520.0,1.24410277]
[1748460764879,0.5923919,107530.0,107520.0,1.24410054]
[1748460765080,0.7783376,107530.0,107520.0,1.24410054]
[1748460765783,0.7783376,107530.0,107520.0,1.24410112]
[1748460766283,0.8101376,107530.0,107520.0,1.24409916]
[1748460766485,0.8101376,107530.0,107520.0,1.2296056]
[1748460767081,0.8101376,107530.0,107520.0,1.24410288]
[1748460767474,0.8101376,107530.0,107520.0,1.24861843]
[1748460767674,0.8101376,107530.0,107520.0,1.24859318]
[1748460768387,0.8101376,107530.0,107520.0,1.24859182]
[1748460768569,0.8101376,107530.0,107520.0,1.20727188]
[1748460768775,0.8101376,107530.0,107520.0,1.25137454]
[1748460769077,0.8101376,107530.0,107520.0,1.25137472]
[1748460769476,0.8101376,107530.0,107520.0,1.23687986]
[1748460769681,0.2767376,107530.0,107520.0,1.25137449]
[1748460769883,0.7081776,107530.0,107520.0,1.20387986]
[1748460770085,0.8781776,107530.0,107520.0,1.21837409]
[1748460770779,0.8781776,107530.0,107520.0,1.20387986]
[1748460770989,0.8781776,107530.0,107520.0,1.21837409]
[1748460771383,0.8781776,107530.0,107520.0,1.21837389]
[1748460772288,0.8781776,107530.0,107520.0,1.21837346]
[1748460772488,0.8781776,107530.0,107520.0,1.21837305]
[1748460772801,0.8781776,107530.0,107520.0,0.85757305]
[1748460772992,0.8781776,107530.0,107520.0,0.71467718]
[1748460773287,0.8781776,107530.0,107520.0,0.79941335]
[1748460773483,0.8781776,107530.0,107520.0,0.78492016]
[1748460773695,0.8781776,107530.0,107520.0,1.16021313]
[1748460773888,0.8781776,107530.0,107520.0,1.14572016]
[1748460774386,0.8781776,107530.0,107520.0,1.16021304]
[1748460774985,0.8781776,107530.0,107520.0,1.21824476]
[1748460775493,0.8781776,107530.0,107520.0,1.21824406]
[1748460776083,0.8781776,107530.0,107520.0,1.21824399]
[1748460776285,0.8781776,107530.0,107520.0,1.218244]
[1748460776594,0.9800976,107530.0,107520.0,1.218244]
[1748460777093,0.9800976,107530.0,107520.0,1.21824379]
[1748460777284,0.9800976,107530.0,107520.0,1.06086399]
[1748460777485,0.9800976,107530.0,107520.0,1.16020455]
[1748460777695,0.9800976,107530.0,107520.0,0.79940426]
[1748460777987,0.9800976,107530.0,107520.0,1.16020426]
[1748460777988,1.1100976,107530.0,107520.0,1.16020426]
[1748460778697,1.1100976,107530.0,107520.0,1.21823598]
[1748460778891,1.1100976,107530.0,107520.0,1.20374436]
[1748460779295,1.1100976,107530.0,107520.0,1.21825057]
[1748460779593,1.1100976,107530.0,107520.0,1.21825056]
[1748460780596,1.1100976,107530.0,107520.0,1.21825042]
[1748460780792,1.1100976,107530.0,107520.0,1.20374436]
[1748460780992,1.1100976,107530.0,107520.0,1.21825042]
[1748460781189,1.1100976,107530.0,107520.0,1.20374436]
[1748460781499,1.1100976,107530.0,107520.0,1.21825042]
[1748460781793,1.1100976,107530.0,107520.0,1.21825044]
[1748460782187,1.1100976,107530.0,107520.0,1.203744]
[1748460782493,1.0080975,107530.0,107520.0,1.21825028]
[1748460782693,0.9762975,107530.0,107520.0,1.21825052]
[1748460783090,0.9762975,107530.0,107520.0,1.21825049]
[1748460783287,1.0078975,107530.0,107520.0,1.21825051]
[1748460784002,1.0078975,107530.0,107520.0,1.21825081]
[1748460784188,1.0078975,107530.0,107520.0,1.203744]
[1748460784388,1.0078975,107530.0,107520.0,1.21825083]
[1748460784592,1.0078975,107530.0,107520.0,1.21825073]
[1748460785295,1.0078975,107530.0,107520.0,1.21825244]
[1748460785496,1.0078975,107530.0,107520.0,0.66465201]
[1748460785696,1.56149793,107530.0,107520.0,0.12514885]
[1748460786004,1.61149793,107530.0,107520.0,0.08014015]
[1748460786300,1.61149793,107530.0,107520.0,0.09453043]
[1748460786491,1.61149793,107530.0,107520.0,0.2804934]
[1748460786799,1.61149793,107530.0,107520.0,0.26598315]
[1748460786995,1.61149793,107530.0,107520.0,0.25049333]
[1748460787303,1.61149793,107530.0,107520.0,0.25061333]
[1748460788001,1.61149793,107530.0,107520.0,0.25061149]
[1748460789401,1.61149793,107530.0,107520.0,0.23610315]
[1748460789600,1.61149793,107530.0,107520.0,0.25061082]
[1748460789901,1.61149793,107530.0,107520.0,0.25060966]
[1748460790298,1.61149793,107530.0,107520.0,0.25060305]
[1748460791295,1.61149793,107530.0,107520.0,0.25060209]
[1748460791696,1.61149793,107530.0,107520.0,0.25060129]
[1748460792410,0.9873375,107530.0,107520.0,0.25609603]
[1748460792600,1.61149793,107530.0,107520.0,0.27060284]
[1748460792908,1.61149793,107530.0,107520.0,0.27060173]
[1748460793205,1.61149793,107530.0,107520.0,0.27060181]
[1748460793390,1.4186975,107530.0,107520.0,0.27060181]
[1748460793590,1.61149793,107530.0,107520.0,0.27060181]
[1748460793793,1.61149793,107530.0,107520.0,0.27060096]
[1748460794001,1.61149793,107530.0,107520.0,0.25609603]
[1748460794302,1.4186975,107530.0,107520.0,0.27060096]
[1748460794493,1.4706175,107530.0,107520.0,0.72669388]
[1748460794808,1.1098175,107530.0,107520.0,1.08749347]
[1748460794996,1.1098175,107530.0,107520.0,1.12069347]
[1748460795198,1.1098175,107530.0,107520.0,1.12069154]
[1748460795501,1.1098175,107530.0,107520.0,1.10618895]
[1748460795702,1.1098175,107530.0,107520.0,0.7598915]
[1748460795904,1.1098175,107530.0,107520.0,0.74538895]
[1748460796097,1.1098175,107530.0,107520.0,0.55258852]
[1748460796298,1.1098175,107530.0,107520.0,0.56709107]
[1748460797205,1.1098175,107530.0,107520.0,0.56709112]
[1748460797601,1.1098175,107530.0,107520.0,0.56709102]
[1748460798717,1.1098175,107530.0,107520.0,0.56709084]
[1748460799012,1.1098175,107530.0,107520.0,0.56709115]
[1748460800204,1.1098175,107530.0,107520.0,0.55258834]
[1748460800405,1.1098175,107530.0,107520.0,0.56709136]
[1748460800708,1.1098175,107530.0,107520.0,0.55258834]
[1748460800907,1.1098175,107530.0,107520.0,0.56709143]
[1748460801301,1.1098175,107530.0,107520.0,0.53389143]
[1748460801710,1.1098175,107530.0,107520.0,0.53389166]
[1748460802295,1.4706175,107530.0,107520.0,0.53389166]
[1748460802697,1.4706175,107530.0,107520.0,0.53389196]
[1748460802916,1.4706175,107530.0,107520.0,0.53389219]
[1748460803112,1.4706175,107530.0,107520.0,0.31323837]
[1748460803113,1.71341793,107530.0,107520.0,0.31323837]
[1748460803308,1.71341793,107530.0,107520.0,0.10311837]
[1748460803507,1.71341793,107530.0,107520.0,0.28908137]
[1748460803811,1.71341793,107530.0,107520.0,0.28920137]
[1748460804203,1.71341793,107530.0,107520.0,0.27469752]
[1748460804399,1.71341793,107530.0,107520.0,0.04742555]
[1748460804607,1.82894738,107530.0,107520.0,0.00742555]
[1748460804816,1.82894738,107530.0,107520.0,0.00730555]
[1748460805016,1.82894738,107530.0,107520.0,0.02181041]
[1748460805515,1.82894738,107530.0,107520.0,0.02181053]
[1748460805516,1.97406521,107530.0,107520.0,0.02181053]
[1748460805711,1.97406521,107530.0,107520.0,0.00742555]
[1748460806017,1.84454386,107530.0,107520.0,0.00742555]
[1748460806212,1.84454386,107530.0,107520.0,0.02193126]
[1748460806413,1.96007499,107530.0,107520.0,0.02193126]
[1748460806904,1.96007499,107530.0,107520.0,0.00742555]
[1748460807313,2.32087499,107530.0,107520.0,0.00742555]
[1748460807513,2.17575716,107530.0,107520.0,0.00742555]
[1748460807910,2.17575716,107530.0,107500.0,0.17279218]
[1748460807911,0.1859802,107510.0,107500.0,0.23389068]
[1748460808111,1.66286063,107510.0,107500.0,0.53168071]
[1748460808306,1.66286063,107510.0,107500.0,0.48530151]
[1748460808307,1.72486063,107510.0,107500.0,0.48530151]
[1748460808915,1.72486063,107510.0,107500.0,0.51538151]
[1748460809215,1.72486063,107510.0,107500.0,0.51550151]
[1748460809408,1.72486063,107510.0,107500.0,0.5300077]
[1748460809615,1.72486063,107510.0,107500.0,0.51550151]
[1748460809816,1.72486063,107510.0,107500.0,0.51650151]
[1748460810116,1.72486063,107510.0,107500.0,0.51750151]
[1748460810326,1.72486063,107510.0,107500.0,0.53200829]
[1748460811029,1.1712602,107510.0,107500.0,0.53200829]
[1748460811423,1.1712602,107510.0,107500.0,0.53200191]
[1748460811732,1.1712602,107510.0,107500.0,0.53198669]
[1748460811924,1.5320602,107510.0,107500.0,0.53198669]
[1748460812126,1.5320602,107510.0,107500.0,0.53198354]
[1748460812325,1.5320602,107510.0,107500.0,0.53198357]
[1748460812631,1.5320602,107510.0,107500.0,0.51748629]
[1748460812834,1.1712602,107510.0,107500.0,0.53058648]
[1748460813028,1.5320602,107510.0,107500.0,0.53058648]
[1748460813229,1.5320602,107510.0,107500.0,0.53058649]
[1748460813630,1.1712602,107510.0,107500.0,0.5305878]
[1748460814338,1.5320602,107510.0,107500.0,0.5305878]
[1748460814839,1.5320602,107510.0,107500.0,0.53058564]
[1748460815228,1.5320602,107510.0,107500.0,0.52060696]
[1748460815435,1.5320602,107510.0,107500.0,0.53510121]
[1748460815733,1.5320602,107510.0,107500.0,0.49382685]
[1748460815931,1.72486063,107510.0,107500.0,0.53510912]
[1748460816523,1.72486063,107510.0,107500.0,0.53510909]
[1748460816730,1.72486063,107510.0,107500.0,0.53510829]
[1748460817239,1.72486063,107510.0,107500.0,0.53510769]
[1748460817936,1.72486063,107510.0,107500.0,0.53510709]
[1748460818336,1.72486063,107510.0,107500.0,0.52061362]
[1748460818539,1.72486063,107510.0,107500.0,0.5351071]
[1748460819039,1.72486063,107510.0,107500.0,0.52061362]
[1748460819233,1.72486063,107510.0,107500.0,0.53510656]
[1748460820430,1.5320602,107510.0,107500.0,0.53510656]
[1748460820932,1.5320602,107510.0,107500.0,0.56790555]
[1748460821328,1.5320602,107510.0,107500.0,0.56790538]
[1748460821635,1.5320602,107510.0,107500.0,0.55341362]
[1748460822132,1.5320602,107510.0,107500.0,0.56778282]
[1748460822332,1.1712602,107510.0,107500.0,0.55341362]
[1748460822528,1.1712602,107510.0,107500.0,0.56778282]
[1748460822730,1.1712602,107510.0,107500.0,0.55341362]
[1748460822933,1.1712602,107510.0,107500.0,0.56778223]
[1748460823133,1.5320602,107510.0,107500.0,0.56778223]
[1748460823437,1.5320602,107510.0,107500.0,0.56777661]
[1748460823746,1.5320602,107510.0,107500.0,0.55341362]
[1748460823929,1.72486063,107510.0,107500.0,0.33538504]
[1748460824241,1.72486063,107510.0,107500.0,0.52138273]
[1748460824640,1.72486063,107510.0,107500.0,0.52137699]
[1748460825338,1.72486063,107510.0,107500.0,0.52137711]
[1748460825543,1.72486063,107510.0,107500.0,0.5213771]
[1748460826541,1.72486063,107510.0,107500.0,0.4885771]
[1748460826742,1.75636063,107510.0,107500.0,0.4885771]
[1748460827127,1.75636063,107510.0,107500.0,0.06238892]
[1748460827441,1.87189176,107510.0,107500.0,0.01446984]
[1748460827646,1.87189176,107510.0,107500.0,0.01459019]
[1748460827839,1.96491176,107510.0,107500.0,0.01447177]
[1748460828039,1.96491176,107510.0,107500.0,0.00012005]
[1748460828344,3.02011176,107510.0,107500.0,0.01458704]
[1748460828553,3.02011176,107510.0,107500.0,0.00012005]
[1748460828843,3.02011176,107510.0,107500.0,0.01458893]
[1748460829340,3.02011176,107510.0,107500.0,0.00012005]
[1748460829645,2.92709176,107510.0,107500.0,0.01458914]
[1748460830243,2.49569176,107510.0,107500.0,0.20058664]
[1748460830541,2.0854802,107510.0,107500.0,0.42368707]
[1748460830743,2.1873602,107510.0,107500.0,0.49498398]
[1748460830939,1.6931802,107510.0,107500.0,0.69498398]
[1748460831147,1.7130602,107510.0,107500.0,0.73626404]
[1748460831331,1.49708,107510.0,107500.0,0.73626404]
[1748460831537,1.76844,107510.0,107500.0,1.14058464]
[1748460831737,0.71324,107510.0,107500.0,1.14058444]
[1748460831940,0.8992203,107510.0,107500.0,1.14058444]
[1748460832246,0.8992202,107510.0,107500.0,1.14058444]
[1748460832440,0.18,107510.0,107500.0,1.14058485]
[1748460832639,0.61136,107510.0,107500.0,1.18414761]
[1748460832940,0.61136,107510.0,107500.0,1.15511202]
[1748460833143,0.61136,107510.0,107500.0,1.19863392]
[1748460833440,0.18,107510.0,107500.0,1.19863392]
[1748460833746,0.61136,107510.0,107500.0,1.19863392]
[1748460834142,0.61136,107510.0,107500.0,1.19863571]
[1748460834349,0.61136,107510.0,107500.0,1.1986357]
[1748460834540,0.61136,107510.0,107500.0,1.18416202]
[1748460834738,0.61136,107510.0,107500.0,1.19863574]
[1748460835245,0.61132,107510.0,107500.0,1.19863574]
[1748460835446,0.18,107510.0,107500.0,1.19863574]
[1748460835634,0.61132,107510.0,107500.0,1.19863574]
[1748460835838,0.61132,107510.0,107500.0,1.19863416]
[1748460836548,0.61132,107510.0,107500.0,1.18416202]
[1748460836748,0.61132,107510.0,107500.0,1.19863416]
[1748460836947,0.61132,107510.0,107500.0,1.19863439]
[1748460837449,0.61132,107510.0,107500.0,1.18415565]
[1748460837953,0.64212,107510.0,107500.0,1.19862802]
[1748460838137,0.6481003,107510.0,107500.0,0.81983009]
[1748460838334,1.23360073,107510.0,107500.0,0.40087718]
[1748460838540,1.23360073,107510.0,107500.0,0.32617857]
[1748460838741,1.23360073,107510.0,107500.0,0.29217671]
[1748460838949,1.59440073,107510.0,107500.0,0.29205677]
[1748460839248,1.59440073,107510.0,107500.0,0.10617917]
[1748460839549,1.64440073,107510.0,107500.0,0.22058943]
[1748460840247,1.64440073,107510.0,107500.0,0.25358943]
[1748460840452,1.64440073,107510.0,107500.0,0.23911765]
[1748460840747,1.64440073,107510.0,107500.0,0.25359006]
[1748460841546,1.64440073,107510.0,107500.0,0.22059068]
[1748460841848,1.64440073,107510.0,107500.0,0.22058989]
[1748460842236,1.64440073,107510.0,107500.0,0.22065579]
[1748460842442,1.64440073,107510.0,107500.0,0.22065597]
[1748460842633,1.64440073,107510.0,107500.0,0.29314269]
[1748460842834,1.64440073,107510.0,107500.0,0.29314262]
[1748460843549,1.64440073,107510.0,107500.0,0.26194262]
[1748460843745,1.64440073,107510.0,107500.0,0.26194277]
[1748460844062,1.64440073,107510.0,107500.0,0.06140672]
[1748460844347,1.64440073,107510.0,107500.0,0.01465845]
[1748460844651,1.64440073,107510.0,107500.0,0.20517207]
[1748460844840,1.64440073,107510.0,107500.0,0.01905447]
[1748460845144,1.64440073,107510.0,107500.0,0.0191745]
[1748460845952,1.64440073,107510.0,107500.0,0.01917483]
[1748460846142,1.64440073,107510.0,107500.0,0.00463555]
[1748460846343,1.64440073,107510.0,107500.0,0.01917493]
[1748460846744,1.64440073,107510.0,107500.0,0.01917495]
[1748460847050,1.75993186,107510.0,107500.0,0.01917495]
[1748460847449,1.75993186,107510.0,107500.0,0.01905586]
[1748460847746,2.62229143,107510.0,107500.0,0.01917586]
[1748460847953,2.81509186,107510.0,107500.0,0.01917578]
[1748460848138,2.81509186,107510.0,107500.0,0.01917553]
[1748460848339,2.81509186,107510.0,107500.0,0.00463555]
[1748460848552,2.81509186,107510.0,107500.0,0.01917556]
[1748460849346,2.81509186,107510.0,107500.0,0.00463555]
[1748460849552,2.81509186,107510.0,107500.0,0.01917579]
[1748460850147,2.81509186,107510.0,107500.0,0.00463555]
[1748460850450,2.81509186,107510.0,107500.0,0.01917591]
[1748460850846,2.81509186,107510.0,107500.0,0.00463555]
[1748460851038,2.81509186,107510.0,107500.0,0.0191757]
[1748460851244,2.38377186,107510.0,107500.0,0.00463555]
[1748460851447,2.38377186,107510.0,107500.0,0.20517323]
[1748460851641,2.80136073,107510.0,107500.0,0.05157563]
[1748460851849,2.26824073,107510.0,107500.0,0.05157479]
[1748460852044,2.80136073,107510.0,107500.0,0.03703555]
[1748460852249,2.80136073,107510.0,107500.0,0.23757249]
[1748460852450,2.80136073,107510.0,107500.0,0.05157479]
[1748460853444,2.80136073,107510.0,107500.0,0.05157499]
[1748460854953,2.80136073,107510.0,107500.0,0.0515753]
[1748460855457,2.80136073,107510.0,107500.0,0.0515752]
[1748460856151,2.80136073,107510.0,107500.0,0.00463555]
[1748460856452,2.80136073,107510.0,107500.0,0.0191753]
[1748460857255,2.80136073,107510.0,107500.0,0.01917509]
[1748460858042,2.80136073,107510.0,107500.0,0.01917546]
[1748460858352,2.80136073,107510.0,107500.0,0.01917553]
[1748460858654,2.91689186,107510.0,107500.0,0.01917553]
[1748460858957,2.91689186,107510.0,107500.0,0.02196585]
[1748460859157,2.80136073,107510.0,107500.0,0.02196585]
[1748460859458,2.91689186,107510.0,107500.0,0.02196555]
[1748460859752,2.80136073,107510.0,107500.0,0.02196555]
[1748460859950,2.91689186,107510.0,107500.0,0.00742555]
[1748460860149,2.91689186,107510.0,107500.0,0.02196565]
[1748460860458,2.91689186,107510.0,107500.0,0.0219657]
[1748460860753,2.80136073,107510.0,107500.0,0.02196591]
[1748460860957,2.80136073,107510.0,107500.0,0.02184591]
[1748460861258,2.80136073,107510.0,107500.0,0.02196606]
[1748460862753,2.80136073,107510.0,107500.0,0.0219663]
[1748460863458,2.91689186,107510.0,107500.0,0.02196626]
[1748460863659,2.80136073,107510.0,107500.0,0.02196626]
[1748460863858,2.91689186,107510.0,107500.0,0.02196626]
[1748460864450,3.27769186,107510.0,107500.0,0.02196626]
[1748460865550,3.27769186,107510.0,107500.0,0.02196635]
[1748460865958,3.27769186,107510.0,107500.0,0.02196628]
[1748460866847,3.27769186,107510.0,107500.0,0.02196627]
[1748460867449,3.27769186,107510.0,107500.0,0.02196629]
[1748460867752,3.27769186,107510.0,107500.0,0.00742555]
[1748460868052,3.27769186,107510.0,107500.0,0.02196627]
[1748460868250,3.27769186,107510.0,107500.0,0.02196629]
[1748460868455,3.42280969,107510.0,107500.0,0.02196632]
[1748460868653,3.42280969,107510.0,107500.0,0.00742555]
[1748460868963,3.42280969,107510.0,107500.0,0.0219663]
[1748460869258,3.42280969,107510.0,107500.0,0.00742555]
[1748460869461,3.30727856,107510.0,107500.0,0.00742555]
[1748460869759,3.30727856,107510.0,107500.0,0.0219663]
[1748460870151,3.30727856,107510.0,107500.0,0.00742555]
[1748460870350,3.30727856,107510.0,107500.0,0.02196632]
[1748460870553,3.42283003,107510.0,107500.0,0.00742555]
[1748460870751,3.2777122,107510.0,107500.0,0.02196634]
[1748460871261,3.2777122,107510.0,107500.0,0.02196625]
[1748460871755,3.16216073,107510.0,107500.0,0.00742555]
[1748460871955,3.19356073,107510.0,107500.0,0.02196628]
[1748460872155,3.33867856,107510.0,107500.0,0.02196628]
[1748460872356,2.61275813,107510.0,107500.0,0.02196628]
[1748460872551,2.58321624,107510.0,107500.0,0.23996338]
[1748460872760,1.46516,107510.0,107500.0,0.66699299]
[1748460873055,1.8464,107510.0,107500.0,1.07134878]
[1748460873361,2.0323802,107510.0,107500.0,1.07134809]
[1748460873657,1.6011402,107510.0,107500.0,1.07134809]
[1748460873850,2.0323802,107510.0,107500.0,1.07134809]
[1748460874356,1.8464,107510.0,107500.0,1.07134804]
[1748460875163,1.41516,107510.0,107500.0,1.07134804]
[1748460875463,1.8464,107510.0,107500.0,1.07134804]
[1748460875658,1.8464,107510.0,107500.0,1.07129974]
[1748460875967,1.8464,107510.0,107500.0,1.02775284]
[1748460876355,2.0323802,107510.0,107500.0,1.02775284]
[1748460877159,2.0323402,107510.0,107500.0,1.02775284]
[1748460878253,2.0323402,107510.0,107500.0,1.01321588]
[1748460878454,2.0323402,107510.0,107500.0,1.02775284]
[1748460878758,2.0323402,107510.0,107500.0,1.01321588]
[1748460878956,2.0645402,107510.0,107500.0,1.02775284]
[1748460879149,2.0645402,107510.0,107500.0,0.66695284]
[1748460879350,2.0645402,107510.0,107500.0,0.66695332]
[1748460879755,2.0967402,107510.0,107500.0,0.66695332]
[1748460879957,2.0967402,107510.0,107500.0,0.61100348]
[1748460880156,2.0967402,107510.0,107500.0,0.66692635]
[1748460880360,2.0967402,107510.0,107500.0,0.47412592]
[1748460880962,2.0967402,107510.0,107500.0,0.45958842]
[1748460881156,2.0967402,107510.0,107500.0,0.47412579]
[1748460881555,2.0967402,107510.0,107500.0,0.47412582]
[1748460881751,2.0967402,107510.0,107500.0,0.45958842]
[1748460882057,2.0967402,107510.0,107500.0,0.4741258]
[1748460882550,2.0967402,107510.0,107500.0,0.47412578]
[1748460883370,2.0967402,107510.0,107500.0,0.45958842]
[1748460883761,2.0967402,107510.0,107500.0,0.47412577]
[1748460883966,1.44736,107510.0,107500.0,1.0277262]
[1748460884265,2.0323007,107510.0,107500.0,1.0277259]
[1748460884463,2.0646007,107510.0,107500.0,1.02770978]
[1748460885061,2.0646007,107510.0,107500.0,1.01317273]
[1748460885266,1.84632,107510.0,107500.0,1.0277098]
[1748460885664,1.84632,107510.0,107500.0,1.02770978]
[1748460885970,1.84632,107510.0,107500.0,1.02770979]
[1748460886173,1.87862,107510.0,107500.0,1.02770979]
[1748460886471,1.87862,107510.0,107500.0,1.01317273]
[1748460887173,1.87862,107510.0,107500.0,1.02770979]
[1748460887970,1.87862,107510.0,107500.0,1.02769984]
[1748460888161,1.87862,107510.0,107500.0,1.01316278]
[1748460888367,1.87862,107510.0,107500.0,1.02769984]
[1748460888560,1.41516,107510.0,107500.0,1.02769984]
[1748460888762,1.84628,107510.0,107500.0,1.02769888]
[1748460889475,1.87828,107510.0,107500.0,1.01316182]
[1748460889671,1.87828,107510.0,107500.0,1.02769884]
[1748460889870,1.91008,107510.0,107500.0,1.02769884]
[1748460890072,2.0960607,107510.0,107500.0,1.02769884]
[1748460890273,2.1289607,107510.0,107500.0,1.02769884]
[1748460890466,2.1289607,107510.0,107500.0,0.66689884]
[1748460890775,2.1289607,107510.0,107500.0,0.66689909]
[1748460891076,2.1289607,107510.0,107500.0,0.66689917]
[1748460891575,2.1289607,107510.0,107500.0,0.47409874]
[1748460893065,2.1289607,107510.0,107500.0,0.47410409]
[1748460893261,2.1289607,107510.0,107500.0,0.47410406]
[1748460893672,2.1289607,107510.0,107500.0,0.45956674]
[1748460893980,2.1289607,107510.0,107500.0,0.4741043]
[1748460894466,2.1289607,107510.0,107500.0,0.4440043]
[1748460896074,2.1289607,107510.0,107500.0,0.44400427]
[1748460896378,2.1289607,107510.0,107500.0,0.44400426]
[1748460896585,1.0738007,107510.0,107500.0,0.44400426]
[1748460897179,1.0738007,107510.0,107500.0,0.4440043]
[1748460897374,1.0738007,107510.0,107500.0,0.44400418]
[1748460897576,1.0738007,107510.0,107500.0,0.42946674]
[1748460897782,1.0738007,107510.0,107500.0,0.44400415]
[1748460897973,1.0738007,107510.0,107500.0,0.44400414]
[1748460898780,1.0738007,107510.0,107500.0,0.44400409]
[1748460898986,1.0738007,107510.0,107500.0,0.63680453]
[1748460899575,1.0738007,107510.0,107500.0,0.63680468]
[1748460899781,0.88782,107510.0,107500.0,0.63680468]
[1748460899979,1.0738007,107510.0,107500.0,0.63680468]
[1748460900180,0.88782,107510.0,107500.0,0.63680468]
[1748460900377,1.0738016,107510.0,107500.0,0.63680468]
[1748460900579,1.0738016,107510.0,107500.0,0.63680456]
[1748460900881,1.0738016,107510.0,107500.0,0.63680458]
[1748460901079,1.0738016,107510.0,107500.0,0.63680461]